fUSD/lending_fUSD_20240101
["ID","MTS","AMOUNT","RATE_DAILY","PERIOD"]
[309796220,1704143443058,-288.15054455,0.00023942,2]
[309796221,1704143443068,-2778.44239945,0.00023947,2]
[309796222,1704143443115,-6546.94639396,0.00023947,2]
[309796223,1704143443125,-278.31410173,0.00023947,2]
[309796224,1704143443135,-155.0,0.00023947,2]
[309796225,1704143443144,-3180.04163262,0.00023948,2]
[309796226,1704143443154,-217.17335148,0.00023948,2]
[309796227,1704143443163,-1649.41293269,0.00023948,2]
[309796228,1704143443175,-2960.07744148,0.00023948,2]
[309796229,1704143443185,-280.14979655,0.00023948,2]
[309796230,1704143443194,-175.64,0.00023983,2]
[309796231,1704143443204,-175.64,0.00024531,2]
[309796232,1704143443214,-1012.53705553,0.00025,3]
[309796233,1704143443223,-197.02458152,0.00025079,2]
[309796234,1704143443234,-292.57293629,0.0002509,2]
[309796235,1704143443243,-177.12,0.00025869,2]
[309796236,1704143443253,-250.0,0.00027,3]
[309796237,1704143443262,-200.0,0.00028,2]
[309796238,1704143443272,-208.0,0.00028697,2]
[309796239,1704143443283,-300.0,0.00029,3]
[309796240,1704143443292,-155.0,0.0003,2]
[309796241,1704143443302,-9006.74877919,0.0003,4]
[309796242,1704143443313,-17824.48638094,0.0003,2]
[309796243,1704143443323,-155.0,0.0003,4]
[309796244,1704143443333,-630.73,0.000303,2]
[309796245,1704143443342,-500.0,0.00030847,2]
[309796246,1704143443352,-350.0,0.00031,3]
[309796247,1704143443361,-370.45,0.00032179,2]
[309796248,1704143443370,-179.58,0.00032216,2]
[309796249,1704143443380,-416.19,0.0003224,2]
[309796250,1704143443389,-172.47,0.00032268,2]
[309796251,1704143443399,-150.0,0.00032287,2]
[309796252,1704143443408,-23900.0,0.00032296,2]
[309796253,1704143443417,-250.0,0.00032322,2]
[309796254,1704143443434,-792.54,0.00032326,2]
[309796255,1704143443448,-164.29,0.00032331,2]
[309796257,1704143443458,-913.46,0.00032352,2]
[309796259,1704143443469,-2647.94,0.00032405,2]
[309796260,1704143443479,-630.73,0.00032564,2]
[309796261,1704143443490,-162.51,0.00032877,15]
[309796262,1704143443501,-157.76,0.00032972,2]
[309796263,1704143443512,-400.0,0.00033,3]
[309796264,1704143443522,-172.47,0.00033075,2]
[309796265,1704143443532,-208.0,0.00033169,10]
[309796266,1704143443542,-416.19,0.00033219,2]
[309796267,1704143443556,-370.45,0.0003337,2]
[309796268,1704143443566,-409.5504781,0.00033622,4]
[309796269,1704143443577,-666.66666,0.00033798,2]
[309796270,1704143443589,-172.47,0.00033882,2]
[309796271,1704143443600,-250.0,0.0003389,2]
[309796272,1704143443610,-333.33333,0.00033898,2]
[309796273,1704143443620,-333.33333,0.00033998,2]
[309796274,1704143443631,-1000.0,0.00034,4]
[309796275,1704143443642,-10000.02244632,0.00034,30]
[309796276,1704143443653,-164.29,0.00034012,2]
[309796277,1704143443663,-444.44444,0.00034098,2]
[309796278,1704143443674,-158.29,0.000341,2]
[309796279,1704143443686,-416.19,0.00034197,2]
[309796280,1704143443696,-888.88888,0.00034198,2]
[309796281,1704143443708,-444.44444,0.00034298,2]
[309796282,1704143443718,-888.88888,0.00034398,2]
[309796283,1704143443728,-888.88888,0.00034498,2]
[309796284,1704143443738,-370.45,0.0003456,2]
[309796285,1704143443748,-172.47,0.00034689,2]
[309796286,1704143443758,-1354.69,0.00034799,2]
[309796287,1704143443767,-157.17637819,0.000348,2]
[309796288,1704143443778,-630.73,0.00034828,2]
[309796289,1704143443788,-888.88888,0.00034898,2]
[309796290,1704143443798,-5401.37509155,0.000349,2]
[309796291,1704143443808,-444.44444,0.00034998,2]
[309796292,1704143443818,-13017.05767502,0.00035,4]
[309796293,1704143443828,-450.0,0.00035,3]
[309796294,1704143443838,-1111.1111,0.00035098,2]
[309796295,1704143443848,-416.19,0.00035176,2]
[309796296,1704143443858,-555.55555,0.00035298,2]
[309796297,1704143443868,-555.55555,0.00035398,2]
[309796298,1704143443877,-172.47,0.00035495,2]
[309796299,1704143443887,-555.55555,0.00035498,2]
[309796300,1704143443897,-167.01,0.00035584,2]
[309796301,1704143443907,-555.55555,0.00035598,2]
[309796302,1704143443917,-3056.83,0.00035616,2]
[309796303,1704143443927,-151.16,0.00035616,2]
[309796304,1704143443936,-555.55555,0.00035698,2]
[309796305,1704143443946,-370.45,0.00035751,2]
[309796306,1704143443955,-555.55555,0.00035798,2]
[309796307,1704143443965,-180.0,0.00035867,2]
[309796308,1704143443976,-9604.33331486,0.00035889,2]
[309796309,1704143443988,-1111.1111,0.00035898,2]
[309796310,1704143443998,-150.65,0.0003599,2]
[309796311,1704143444008,-555.55555,0.00035998,2]
[309796312,1704143444018,-71010.77355451,0.00036,4]
[309796313,1704143444074,-7462.46698129,0.00036,4]
[309796314,1704143444636,155.0,0.0002155,2]
[309796316,1704143446107,-640.77986146,0.00023946,2]
[309796317,1704143446120,-18307.48686436,0.00023946,2]
[309796318,1704143446130,-324.62212602,0.00023946,2]
[309796319,1704143446139,-4863.06055146,0.00036,4]
[309796320,1704143446149,-4292.76154363,0.00036089,2]
[309796321,1704143446159,-3766.26252582,0.00036089,2]
[309796322,1704143446171,-526.49901779,0.00036089,2]
[309796323,1704143446180,-1333.33332,0.00036098,2]
[309796324,1704143446190,-416.19,0.00036154,2]
[309796325,1704143446199,-666.66666,0.00036298,2]
[309796326,1704143446208,-207.46,0.00036312,2]
[309796327,1704143446218,-792.54,0.00036366,2]
[309796328,1704143446227,-666.66666,0.00036398,2]
[309796329,1704143446236,-666.66666,0.00036498,2]
[309796330,1704143446246,-324.62488452,0.00036498,2]
[309796331,1704143446259,-1000.0,0.00036499,2]
[309796332,1704143446268,-5000.0,0.000365,10]
[309796333,1704143446278,-2107.5285,0.0003658,2]
[309796334,1704143446287,-1333.33332,0.00036598,2]
[309796335,1704143446297,-4292.76154361,0.00036609,2]
[309796336,1704143446306,-162.51,0.00036613,15]
[309796337,1704143446316,-2466.96629898,0.00036633,4]
[309796338,1704143446326,-685.31917993,0.00036645,4]
[309796339,1704143446335,-3586.51,0.00036652,2]
[309796340,1704143446345,-165.08,0.00036675,2]
[309796341,1704143446355,-155.0,0.00036678,4]
[309796342,1704143446365,-1040.98279535,0.00036678,4]
[309796343,1704143446374,-310.0,0.00036678,2]
[309796344,1704143446384,-309.02030832,0.00036678,4]
[309796345,1704143446393,-1243.80022153,0.00036678,4]
[309796346,1704143446403,-269.83626346,0.00036679,2]
[309796347,1704143446413,-250.0,0.000367,2]
[309796348,1704143446422,-187.20901984,0.0003689,2]
[309796349,1704143446431,-3000.0,0.000369,2]
[309796350,1704143446441,-556.10646295,0.000369,2]
[309796351,1704143446450,-556.10646276,0.000369,2]
[309796352,1704143446459,-1780.0,0.000369,3]
[309796353,1704143446469,-556.10646276,0.000369,2]
[309796354,1704143446479,-556.10646276,0.000369,2]
[309796355,1704143446488,-556.10646276,0.000369,2]
[309796356,1704143446498,-556.10646276,0.000369,2]
[309796357,1704143446507,-556.10646276,0.000369,2]
[309796358,1704143446517,-556.10646276,0.000369,2]
[309796359,1704143446526,-556.10646276,0.000369,2]
[309796360,1704143446536,-556.10646276,0.000369,2]
[309796361,1704143446545,-556.10646276,0.000369,2]
[309796362,1704143446555,-370.45,0.00036942,2]
[309796363,1704143446565,-157.8,0.00036999,2]
[309796364,1704143446575,-100000.0,0.00037,7]
[309796365,1704143446584,-1347.98228686,0.00037,20]
[309796366,1704143446594,-11489.63019075,0.00037,3]
[309796459,1704143447165,-3621.36980925,0.00037,3]
[309796462,1704143447175,-500.0,0.00037,3]
[309796464,1704143447185,-878.63019075,0.00037,2]
[309796500,1704143796678,191.74291,0.0002221,2]
[309796501,1704144145098,-1490.6423875,0.00026881,2]
[309796502,1704144145154,-1132.97142941,0.00026881,2]
[309796503,1704144145197,-369.84974276,0.00026881,2]
[309796504,1704144145225,-150.0,0.00026882,2]
[309796505,1704144145249,-228.4115,0.00026882,14]
[309796506,1704144145272,-166.71010626,0.00026966,2]
[309796507,1704144145524,-537.41483407,0.00026966,2]
[309796534,1704144632218,-1490.6423875,0.00024148,2]
[309796535,1704144632227,-251.99880636,0.00024149,2]
[309796536,1704144632237,-164.2384182,0.0002415,2]
[309796537,1704144632246,-1510.90750333,0.0002415,2]
[309796538,1704144632265,-257.67479485,0.0002415,2]
[309796539,1704144632277,-439.53018558,0.0002415,2]
[309796540,1704144632289,-54.73743499,0.0002415,2]
[309796541,1704144632299,-217.17335148,0.00024151,2]
[309796542,1704144632311,-20.16211164,0.00024151,2]
[309796543,1704144632323,-398.23731341,0.00024151,2]
[309796544,1704144632333,-93.94878284,0.00024152,2]
[309796545,1704144632345,-418.27488,0.00024152,2]
[309796546,1704144632370,-497.48514,0.00024152,2]
[309796547,1704144632436,-764.41460189,0.00024152,2]
[309796548,1704144632490,-1117.12550172,0.00024152,2]
[309796549,1704144632499,-11122.5176076,0.00024154,2]
[309796550,1704144632511,-2205.66949563,0.00024154,2]
[309796551,1704144632526,-1046.12904289,0.00024154,2]
[309796552,1704144632541,-11608.64775256,0.00024154,2]
[309796554,1704144632559,-1712.71288509,0.00024154,2]
[309796556,1704144632572,-1064.22017222,0.00024154,2]
[309796620,1704144638377,-0.26542138,0.00024153,2]
[309796621,1704144638388,-540.4,0.00024153,2]
[309796622,1704144638419,-773.49123472,0.00024153,2]
[309796623,1704144638429,-4878.26415042,0.00024154,2]
[309796624,1704144638439,-161.98805929,0.00024156,2]
[309796625,1704144638450,-155.0,0.00024259,2]
[309796626,1704144638459,-166.71010626,0.00025,2]
[309796627,1704144638474,-161.98805929,0.00025051,2]
[309796628,1704144638483,-161.98805929,0.00025946,2]
[309796629,1704144638493,-813.28,0.00025946,2]
[309796630,1704144638502,-150.0,0.0002675,2]
[309796631,1704144638512,-20372.19464531,0.00026831,2]
[309796632,1704144638525,-161.98805929,0.00026842,2]
[309796633,1704144638534,-3093.16977846,0.00026866,2]
[309796634,1704144638543,-250.0,0.00026913,2]
[309796635,1704144638552,-241.61161094,0.00026954,2]
[309796636,1704144638563,-191.65156222,0.00026956,2]
[309796637,1704144638572,-1376.5470303,0.00026963,2]
[309796638,1704144638581,-412.19619557,0.00026965,2]
[309796639,1704144638591,-854.13879068,0.00026966,2]
[309796640,1704144638601,-1140395.5226024,0.00026966,2]
[309796641,1704144638610,-4324.1673565,0.00026966,2]
[309796642,1704144638619,-499.99,0.00026966,2]
[309796643,1704144638628,-369.28335865,0.00026969,2]
[309796644,1704144638638,-1131.19977349,0.00026969,2]
[309796645,1704144638647,-250.0,0.00027,3]
[309796646,1704144638656,-183.6,0.00027087,2]
[309796647,1704144638665,-161.98805929,0.00027737,2]
[309796648,1704144638675,-524.47,0.0002776,2]
[309796649,1704144638686,-417.2868516,0.00028,2]
[309796650,1704144638695,-161.98805929,0.00028632,2]
[309796651,1704144638705,-300.0,0.00029,3]
[309796652,1704144638715,-161.98805929,0.00029527,2]
[309796653,1704144638727,-1280.91,0.0003,2]
[309796654,1704144638736,-301.09783868,0.00030401,2]
[309796655,1704144638746,-161.98805929,0.00030422,2]
[309796656,1704144638756,-1808.59,0.00030488,2]
[309796657,1704144638765,-205.07,0.00030928,2]
[309796658,1704144638775,-350.0,0.00031,3]
[309796659,1704144638794,-524.47,0.0003123,2]
[309796661,1704144638811,-618.43,0.00031252,2]
[309796663,1704144638824,-161.98805929,0.00031317,2]
[309796666,1704144638839,-229.42450505,0.00031797,2]
[309796669,1704144638856,-229053.020795,0.000318,2]
[309796670,1704144638871,-26696.11431536,0.00032,4]
[309796671,1704144638887,-301.09783868,0.00032169,2]
[309796672,1704144638900,-161.98805929,0.00032213,2]
[309796673,1704144638914,-223.81,0.0003288,2]
[309796674,1704144638929,-223.81,0.0003288,2]
[309796676,1704144638944,-223.81,0.0003288,2]
[309796679,1704144638958,-223.81,0.0003288,2]
[309796680,1704144638970,-223.81,0.0003288,2]
[309796681,1704144638986,-223.81,0.0003288,2]
[309796682,1704144639003,-223.81,0.0003288,2]
[309796683,1704144639016,-276.01258675,0.000329,2]
[309796684,1704144639032,-469.0,0.000329,2]
[309796685,1704144639046,-1500.0,0.000329,2]
[309796686,1704144639062,-250.0,0.000329,2]
[309796687,1704144639078,-250.0,0.00032917,2]
[309796688,1704144639092,-400.0,0.00033,3]
[309796689,1704144639104,-161.98805929,0.00033108,2]
[309796690,1704144639115,-162.51,0.00033129,15]
[309796691,1704144639130,-2988.75,0.0003318,2]
[309796692,1704144639144,-667.69,0.00033421,2]
[309796693,1704144639158,-618.43,0.00033516,2]
[309796694,1704144639170,-208.0,0.00033641,2]
[309796695,1704144639182,-182.07989128,0.00033936,2]
[309796696,1704144639198,-216.76514273,0.00033936,6]
[309796697,1704144639212,-301.09783868,0.00033936,2]
[309796698,1704144639225,-180.87643953,0.00033936,2]
[309796699,1704144639238,-1344.29611529,0.00033936,2]
[309796700,1704144639251,-150.9118151,0.00033936,2]
[309796701,1704144639264,-720.70519671,0.00033936,2]
[309796702,1704144639277,-1000.0,0.00034,4]
[309796703,1704144639290,-785.20918819,0.00034003,2]
[309796704,1704144639303,-161.98805929,0.00034003,2]
[309796705,1704144639317,-191.65156222,0.00034026,2]
[309796706,1704144639329,-223.81,0.00034026,2]
[309796707,1704144639342,-223.81,0.00034026,2]
[309796708,1704144639354,-223.81,0.00034026,2]
[309796709,1704144639366,-191.65156222,0.00034026,2]
[309796710,1704144639379,-458.8490101,0.00034033,2]
[309796711,1704144639392,-402.50293328,0.00034035,4]
[309796712,1704144639405,-170.89465263,0.00034035,4]
[309796713,1704144639417,-364.58118234,0.00034035,4]
[309796714,1704144639430,-158.11647884,0.00034036,23]
[309796715,1704144639442,-386680.69526767,0.00034036,3]
[309796716,1704144639458,-971.16698689,0.00034036,3]
[309796717,1704144639480,-1042.0747437,0.00034036,3]
[309796718,1704144639496,-520.92841,0.00034036,3]
[309796719,1704144639511,-55856.98141786,0.00034036,3]
[309796720,1704144639526,-611.19643992,0.00034036,3]
[309796721,1704144639559,-2357.30520012,0.00034036,3]
[309796722,1704144639587,-10310.13768,0.00034036,3]
[309796723,1704144641033,-5046.27859444,0.00034036,3]
[309796724,1704144641702,-2305.1493444,0.00034036,3]
[309796725,1704144641715,-64900.16605486,0.00034036,3]
[309796726,1704144641759,-964.83907724,0.00034036,3]
[309796759,1704144643267,-615940.27954645,0.00034036,3]
[309796762,1704144643279,-6943.97369825,0.00034036,3]
[309796767,1704144643322,-336.83435,0.00034036,3]
[309796770,1704144643334,-295.83156824,0.00034036,3]
[309796772,1704144643346,-4306.04059988,0.00034036,3]
[309796776,1704144643378,-992.27452676,0.00034036,3]
[309796778,1704144643435,-3293.56903914,0.00034036,3]
[309796779,1704144643447,-334.67870272,0.00034036,3]
[309796780,1704144643490,-289.8365016,0.00034036,3]
[309796781,1704144643547,-4400.00000001,0.00034036,3]
[309796782,1704144643563,-6010.28185775,0.00034036,3]
[309796783,1704144643577,-4324.2095,0.00034036,3]
[309796823,1704144647770,-1299.71574446,0.00034035,4]
[309796824,1704144647780,-420.31572492,0.00034035,4]
[309796825,1704144647789,-536.58541337,0.00034036,3]
[309796826,1704144647803,-573.36141679,0.00034036,3]
[309796827,1704144647814,-3413.4792,0.00034036,2]
[309796828,1704144647824,-38368.04310189,0.00034036,2]
[309796829,1704144647875,-25088.45260008,0.00034036,2]
[309796830,1704144807129,20000.0,0.0001,2]
[309796831,1704144865872,1140395.5226024,0.0001,2]
[309796832,1704144866401,854.13879068,0.0001,2]
[309796833,1704144869011,4324.1673565,0.0001,2]
[309796834,1704144880405,671.20392154,0.0001,2]
[309796835,1704144885992,832998.83551888,0.0001,2]
[309796836,1704144886015,247529.58554289,0.0001,2]
[309796837,1704144886038,59867.10154063,0.0001,2]
[309796838,1704144888998,3603.47279708,0.0001,2]
[309796839,1704144907888,1140395.5226024,0.0001,2]
[309796840,1704144909015,3603.47279708,0.0001,2]
[309796841,1704144923950,574498.95724044,0.0001,2]
[309796842,1704144923986,565896.56536196,0.0001,2]
[309796843,1704144926996,1877.40932728,0.0001,2]
[309796844,1704144945010,1877.40932728,0.0001,2]
[309796845,1704144945886,74271.9057886,0.0001,2]
[309796846,1704144965007,1877.40932728,0.0001,2]
[309796847,1704144983006,1877.40932728,0.0001,2]
[309796848,1704144999117,1877.40932728,0.0001,2]
[309796849,1704145015004,1877.40932728,0.0001,2]
[309796850,1704145035006,1877.40932728,0.0001,2]
[309796851,1704145043166,-1173.5971801,0.00024014,2]
[309796852,1704145043186,-278.31410173,0.00024015,2]
[309796853,1704145043207,-202.52398103,0.00024015,2]
[309796854,1704145043227,-403.22829154,0.00024015,2]
[309796855,1704145043247,-244.02773352,0.00024016,2]
[309796856,1704145043268,-3180.04163262,0.00024016,2]
[309796857,1704145043288,-579.61035159,0.00024017,2]
[309796858,1704145043310,-530.98245295,0.00024017,2]
[309796859,1704145043333,-4471.5640939,0.00024017,2]
[309796860,1704145043353,-160.05593525,0.00024018,2]
[309796861,1704145043378,-1490.6423875,0.00024018,2]
[309796862,1704145043399,-1753.23429551,0.00024018,2]
[309796863,1704145043421,-251.99880636,0.00024019,2]
[309796864,1704145043442,-18948.26672582,0.00024019,2]
[309796865,1704145043462,-4256.57228959,0.0002402,2]
[309796866,1704145043483,-150.0,0.00024022,2]
[309796867,1704145043505,-162.54309566,0.00024038,2]
[309796868,1704145043660,-4746.88969695,0.00024144,2]
[309796869,1704145043681,-155.0,0.00024152,2]
[309796870,1704145043704,-1131.19977349,0.00024152,2]
[309796871,1704145043724,-369.28335865,0.00024152,2]
[309796872,1704145043744,-155.0,0.00024154,2]
[309796873,1704145043765,-155.0,0.00024154,2]
[309796874,1704145043788,-176.9222453,0.00024154,2]
[309796875,1704145044293,158.21861741,0.00024013,2]
[309796876,1704145053977,1171.632771,0.00024017,2]
[309796877,1704145057015,1877.40932728,0.0001,2]
[309796878,1704145079161,1877.40932728,0.0001,2]
[309796879,1704145097012,1877.40932728,0.0001,2]
[309796880,1704145115357,778.6586648,0.0001,2]
[309796919,1704145834256,-164.2384182,0.00024891,2]
[309796920,1704145834266,-202.52398103,0.00024892,2]
[309796921,1704145834278,-4471.5640939,0.00024892,2]
[309796922,1704145834288,-3180.04163262,0.00024893,2]
[309796923,1704145834299,-4256.57228959,0.00024893,2]
[309796924,1704145834309,-552.17980188,0.00024899,2]
[309796925,1704145834319,-986.91,0.000249,3]
[309796926,1704145834328,-506.1025725,0.00025,2]
[309796927,1704145834338,-827.07924677,0.00026964,2]
[309796928,1704145834347,-156.83285728,0.00026964,2]
[309796929,1704145834356,-746.90328532,0.00026964,2]
[309796930,1704145834366,-155.0,0.00026964,2]
[309796931,1704145834375,-196.03634305,0.00026964,2]
[309796932,1704145834385,-323.41646571,0.00026965,2]
[309796933,1704145834394,-340.01029887,0.00027,2]
[309796934,1704145834403,-350.0,0.00027,3]
[309796935,1704145834413,-1420.45,0.00027,2]
[309796936,1704145834422,-150.99,0.00027,2]
[309796937,1704145834431,-222.71937821,0.00027636,2]
[309796938,1704145834441,-499.99,0.00027637,2]
[309796939,1704145834450,-515.41,0.0002791,2]
[309796940,1704145834459,-1808.59,0.0002791,2]
[309796941,1704145834469,-4926.24,0.0002791,2]
[309796942,1704145834478,-370.26513309,0.00028,2]
[309796943,1704145834490,-47.02171851,0.00028,2]
[309796944,1704145834499,-599.08003127,0.00028515,2]
[309796945,1704145834516,-58.75996873,0.00028515,2]
[309796946,1704145834525,-400.0,0.00029,3]
[309796947,1704145834535,-250.0,0.00029267,2]
[309796948,1704145834544,-177.19,0.00029299,2]
[309796949,1704145834554,-197.43,0.00029299,2]
[309796950,1704145834566,-160.33713225,0.00029304,2]
[309796951,1704145834590,-380.49190557,0.00029304,2]
[309796952,1704145834611,-274.93096218,0.00029304,2]
[309796953,1704145834620,-317.52153148,0.00029428,2]
[309796954,1704145834629,-3292.7774714,0.0002943,2]
[309796994,1704145837780,-756.20900926,0.00024891,2]
[309796995,1704145837790,-20607.2225286,0.0002943,2]
[309796996,1704145837799,-3606.87,0.00029447,2]
[309796997,1704145837809,-685.31,0.00029486,2]
[309796998,1704145837819,-200.0,0.00029514,2]
[309796999,1704145837829,-176.32,0.00029527,2]
[309797000,1704145837837,-605.77,0.00029559,2]
[309797001,1704145837847,-157.76,0.0002997,2]
[309797002,1704145837856,-2543.20410274,0.0003,4]
[309797003,1704145837865,-150.0,0.00030178,2]
[309797004,1704145837874,-413.88,0.00030188,2]
[309797005,1704145837886,-276.76,0.00030188,2]
[309797006,1704145837897,-186.98322863,0.00030242,14]
[309797007,1704145837907,-205.07,0.00030243,2]
[309797008,1704145837917,-2490.62,0.00030261,2]
[309797009,1704145837927,-314.69,0.0003032,2]
[309797010,1704145837936,-1031.05659282,0.00030332,2]
[309797011,1704145837945,-3990.92,0.00030405,2]
[309797012,1704145837955,-203.57,0.00030418,2]
[309797013,1704145837965,-1760.61072916,0.00030421,4]
[309797014,1704145837975,-1016.64858306,0.00030421,4]
[309797015,1704145837985,-1449.38033194,0.00030422,4]
[309797017,1704145837995,-158.83747841,0.00030422,4]
[309797018,1704145838004,-675.83425205,0.00030422,4]
[309797019,1704145838014,-155.44851412,0.00030422,4]
[309797020,1704145838027,-445.59668688,0.00030423,4]
[309797021,1704145838037,-45473.59657702,0.00030423,4]
[309797022,1704145838047,-250.0,0.00030432,2]
[309797023,1704145838058,-166.29,0.0003045,2]
[309797024,1704145838068,-183.6,0.00030477,2]
[309797025,1704145838078,-183.6,0.00030491,2]
[309797026,1704145838089,-207.0,0.00030641,2]
[309797027,1704145838100,-157.55,0.00030671,2]
[309797028,1704145838110,-657.84,0.00030779,2]
[309797029,1704145838119,-157.55,0.00030871,2]
[309797030,1704145838129,-278.72695756,0.00030998,4]
[309797031,1704145838140,-1528.0728375,0.00030998,4]
[309797032,1704145838149,-159.76703467,0.00030998,4]
[309797033,1704145838160,-157.92794869,0.00030998,4]
[309797034,1704145838171,-530.49786083,0.00030998,4]
[309797035,1704145838182,-252.70370625,0.00030998,4]
[309797036,1704145838191,-243.72065009,0.00030999,4]
[309797037,1704145838200,-575.77581819,0.00030999,4]
[309797038,1704145838209,-541.40898193,0.00030999,4]
[309797039,1704145838219,-10596.53203629,0.00030999,2]
[309797040,1704145838230,-450.0,0.00031,3]
[309797041,1704145838241,-20000.0,0.00031,2]
[309797042,1704145838252,-176.32,0.00031063,2]
[309797043,1704145838263,-157.55,0.00031071,2]
[309797044,1704145838273,-20325.08738128,0.000311,4]
[309797045,1704145838283,-413.88,0.00031167,2]
[309797046,1704145838292,-157.55,0.00031271,2]
[309797047,1704145838302,-177.19,0.00031467,2]
[309797048,1704145838312,-157.55,0.0003147,2]
[309797049,1704145838323,-157.55,0.0003167,2]
[309797050,1704145838333,-157.55,0.0003187,2]
[309797051,1704145838470,-156.26,0.00031962,2]
[309797052,1704145838480,-20000.0,0.00032,2]
[309797053,1704145838489,-35885.31737384,0.00032,4]
[309797054,1704145838499,-160.0,0.00032,2]
[309797055,1704145838508,-1031.05659282,0.00032066,2]
[309797056,1704145838517,-157.55,0.0003207,2]
[309797057,1704145838527,-413.88,0.00032145,2]
[309797058,1704145838536,-175.29,0.00032247,2]
[309797059,1704145838545,-157.55,0.0003227,2]
[309797060,1704145838555,-162.53,0.00032877,15]
[309797061,1704145838565,-155.0,0.00033,4]
[309797062,1704145838574,-500.0,0.00033,3]
[309797063,1704145838583,-657.84,0.00033043,2]
[309797064,1704145838593,-413.88,0.00033124,2]
[309797065,1704145838603,-685.31,0.00033172,2]
[309797066,1704145838612,-153.84,0.00033224,2]
[309797067,1704145838622,-461.0,0.0003335,2]
[309797068,1704145838631,-177.19,0.00033635,2]
[309797069,1704145838640,-281.91,0.00033755,2]
[309797070,1704145838650,-7787.1706,0.00033765,2]
[309797071,1704145838659,-14124.8943,0.00033765,2]
[309797072,1704145838668,-500.0,0.000338,2]
[309797073,1704145838678,-1000.0,0.000338,2]
[309797074,1704145838687,-1031.05659282,0.000338,2]
[309797075,1704145838696,-446.95591848,0.000338,2]
[309797076,1704145838705,-150.10669214,0.00033824,2]
[309797077,1704145838714,-20372.19464531,0.00033866,4]
[309797078,1704145838725,-5205.75047261,0.0003388,5]
[309797079,1704145838734,-124938.011343,0.0003389,5]
[309797080,1704145838743,-306.34905564,0.0003389,2]
[309797081,1704145838752,-281.91,0.0003389,2]
[309797082,1704145838761,-281.91,0.0003389,2]
[309797083,1704145838770,-245000.0,0.000339,2]
[309797084,1704145838779,-400.0,0.000339,12]
[309797085,1704145838787,-20823.0018904,0.00033914,5]
[309797086,1704145838796,-5205.75047261,0.00033917,5]
[309797087,1704145838806,-229.42450505,0.00033922,2]
[309797088,1704145838816,-46851.7542535,0.00033925,5]
[309797089,1704145838825,-281.91,0.00033925,2]
[309797090,1704145838834,-197.84021067,0.00033926,4]
[309797091,1704145838843,-1421.9565,0.00033927,2]
[309797092,1704145838852,-300.01,0.00033934,2]
[309797093,1704145838861,-300.01,0.00033934,2]
[309797094,1704145838878,-300.01,0.00033934,2]
[309797095,1704145838891,-300.01,0.00033934,2]
[309797096,1704145838901,-300.01,0.00033934,2]
[309797097,1704145838911,-300.01,0.00033934,2]
[309797098,1704145838921,-300.01,0.00033934,2]
[309797099,1704145838931,-300.01,0.00033934,2]
[309797100,1704145838941,-300.04,0.00033934,2]
[309797101,1704145838950,-100000.0,0.00033935,2]
[309797102,1704145838960,-503.1675,0.00033936,2]
[309797103,1704145838970,-5205.75047261,0.0003399,5]
[309797104,1704145838982,-1000.0,0.00034,4]
[309797105,1704145838991,-5000.0,0.00034,2]
[309797106,1704145839003,-10411.5009452,0.00034008,5]
[309797107,1704145839012,-10411.5009452,0.00034014,5]
[309797108,1704145839022,-241.61161094,0.00034032,4]
[309797109,1704145839032,-2351.3011923,0.00034034,4]
[309797110,1704145839042,-291.78761235,0.00034034,4]
[309797111,1704145839052,-166.18654184,0.00034034,4]
[309797112,1704145839062,-34871.20810787,0.00034034,4]
[309797113,1704145839074,-446.80280138,0.00034034,4]
[309797114,1704145839085,-1037.0817784,0.00034035,4]